Department family,Entity,Date,Expense type,Expense area,Supplier,Transaction number,Amount,VAT registration number,
Department for Business Energy and Industrial Strategy,Intellectual Property Office,07/12/2016,Career Development Services,IT Directorate,Marks&spencer Plc Saca,H57720161209czqtyrrlc,36.00,Not Applicable,
Department for Business Energy and Industrial Strategy,Intellectual Property Office,02/12/2016,Career Development Services,IT Directorate,Tesco Store 2931,H57720161206bltjoxgik,219.75,Not Applicable,
Department for Business Energy and Industrial Strategy,Intellectual Property Office,14/12/2016,Career Development Services,IT Directorate,Arrow Enterprise Comp,H57720161216jeipdzxfc,3495.00,Not Applicable,
Department for Business Energy and Industrial Strategy,Intellectual Property Office,02/12/2016,Career Development Services,IT Directorate,Www.Trainingbytesize.C,H57720161206foutydbsf,399.00,Not Applicable,
Department for Business Energy and Industrial Strategy,Intellectual Property Office,14/12/2016,Perpetual Licences,IT Directorate,Digicert Inc,H57720161216tmtszdmrv,1281.92,Not Applicable,
Department for Business Energy and Industrial Strategy,Intellectual Property Office,12/12/2016,Perpetual Licences,IT Directorate,Clicdata,H57720161214nsbjlthnn,24.61,Not Applicable,
Department for Business Energy and Industrial Strategy,Intellectual Property Office,09/12/2016,Fixed Telecoms Equipment,IT Directorate,Rentals From 02,H57720161213cttfusahr,1052.94,Not Applicable,
Department for Business Energy and Industrial Strategy,Intellectual Property Office,07/12/2016,Perpetual Licences,IT Directorate,Atlassian,H57720161209aikhimeke,1038.55,Not Applicable,
Department for Business Energy and Industrial Strategy,Intellectual Property Office,02/12/2016,Perpetual Licences,IT Directorate,Jetbrains,H57720161206okyqmrgts,148.61,Not Applicable,
Department for Business Energy and Industrial Strategy,Intellectual Property Office,30/11/2016,Perpetual Licences,IT Directorate,Www.Cleverbridge.Net,H57720161202mhviqjcmr,97.20,Not Applicable,
Department for Business Energy and Industrial Strategy,Intellectual Property Office,12/12/2016,Career Development Services,IT Directorate,Elearningcurve Llc,H57720161215ggqyywsbd,2671.76,Not Applicable,
Department for Business Energy and Industrial Strategy,Intellectual Property Office,13/12/2016,Books,IT Directorate,Amazon UK Retail Amazon.C,H57720161216fhyimgswc,49.98,Not Applicable,
Department for Business Energy and Industrial Strategy,Intellectual Property Office,08/12/2016,Career Development Services,IT Directorate,Measureup Gbp,H57720161210tkmcsoklq,90.00,Not Applicable,
Department for Business Energy and Industrial Strategy,Intellectual Property Office,12/12/2016,Entertainment,IT Directorate,Asda Stores,H57720161214imnphehrt,2.94,Not Applicable,
Department for Business Energy and Industrial Strategy,Intellectual Property Office,02/12/2016,Network and infrastructure H/W,IT Directorate,Www.Handtec.Co.Uk,H57720161208gtkdxbvck,645.35,Not Applicable,
Department for Business Energy and Industrial Strategy,Intellectual Property Office,05/12/2016,T&S UK,People Places & Serv Direct,Ncp Birmingham Airport,H57720161207hbyeidxrp,47.99,Not Applicable,
Department for Business Energy and Industrial Strategy,Intellectual Property Office,15/12/2016,Entertainment,Innovation Directorate,Asda Superstore 4928,H57720161217eyhigoehe,9.80,Not Applicable,
Department for Business Energy and Industrial Strategy,Intellectual Property Office,08/12/2016,Career Development Services,Innovation Directorate,Amazon UK Marketplace,H57720161210jewawendd,7.83,Not Applicable,
Department for Business Energy and Industrial Strategy,Intellectual Property Office,07/12/2016,Career Development Services,Innovation Directorate,Amazon UK Marketplace,H57720161209kaqvxcfdd,8.48,Not Applicable,
Department for Business Energy and Industrial Strategy,Intellectual Property Office,05/12/2016,Books,Innovation Directorate,Amazon UK Marketplace,H57720161207pwfeynfab,11.98,Not Applicable,
Department for Business Energy and Industrial Strategy,Intellectual Property Office,01/12/2016,Books,Copyright and Enforcement Directorate,Oxforduniversitypr,H57720161203xumrbjvsk,19.99,Not Applicable,
Department for Business Energy and Industrial Strategy,Intellectual Property Office,23/12/2016,Misc Innovation Support,Copyright and Enforcement Directorate,Itunes.Com/bill,H57720161227fbjzwhoac,4.49,Not Applicable,
Department for Business Energy and Industrial Strategy,Intellectual Property Office,13/12/2016,Entertainment,Finance Directorate,Buyology Ltd,H57720161215movqulwii,4.97,Not Applicable,
Department for Business Energy and Industrial Strategy,Intellectual Property Office,12/12/2016,Entertainment,Finance Directorate,Tesco-Stores 6459,H57720161214elvoccbyd,13.00,Not Applicable,
Department for Business Energy and Industrial Strategy,Intellectual Property Office,07/12/2016,Entertainment,Finance Directorate,Tesco-Stores 6459,H57720161209qmlopmwux,12.50,Not Applicable,
Department for Business Energy and Industrial Strategy,Intellectual Property Office,21/12/2016,Office Stationery,Finance Directorate,Xma Ltd,H57720161223qbhuregpu,203.59,Not Applicable,
Department for Business Energy and Industrial Strategy,Intellectual Property Office,19/12/2016,Office Stationery,Finance Directorate,Xma Ltd,H57720161221ocmlpdawv,515.16,Not Applicable,
Department for Business Energy and Industrial Strategy,Intellectual Property Office,14/12/2016,Office Stationery,Finance Directorate,"Amazon Svcs Europe,sar",H57720161216ljyjlttzt,19.44,Not Applicable,
Department for Business Energy and Industrial Strategy,Intellectual Property Office,08/12/2016,Office Stationery,Finance Directorate,Xma Ltd,H57720161210wuwjqyums,145.99,Not Applicable,
Department for Business Energy and Industrial Strategy,Intellectual Property Office,07/12/2016,Office Stationery,Finance Directorate,Xma Ltd,H57720161209hcqacxqbf,253.22,Not Applicable,
Department for Business Energy and Industrial Strategy,Intellectual Property Office,30/11/2016,Office Stationery,Finance Directorate,Amazon UK Marketplace,H57720161202ouzslxsdb,17.91,Not Applicable,
Department for Business Energy and Industrial Strategy,Intellectual Property Office,20/12/2016,Office Stationery,Finance Directorate,Www.Rivieramultimedia.,H57720161222ntbbqttiw,73.80,Not Applicable,
Department for Business Energy and Industrial Strategy,Intellectual Property Office,18/12/2016,Entertainment,People Places & Serv Direct,W M Morrison Plc,H57720161220qvntheqxr,17.16,Not Applicable,
Department for Business Energy and Industrial Strategy,Intellectual Property Office,15/12/2016,Books,People Places & Serv Direct,Amazon UK Marketplace,H57720161217hotzhzkkf,12.95,Not Applicable,
Department for Business Energy and Industrial Strategy,Intellectual Property Office,06/12/2016,Entertainment,People Places & Serv Direct,Tg Howell,H57720161208ptivhyjbv,5.99,Not Applicable,
Department for Business Energy and Industrial Strategy,Intellectual Property Office,06/12/2016,Entertainment,People Places & Serv Direct,Asda Superstore 4928,H57720161208sjkwwywvi,12.26,Not Applicable,
Department for Business Energy and Industrial Strategy,Intellectual Property Office,21/12/2016,Entertainment,People Places & Serv Direct,Asda Superstore 4928,H57720161223yovdctqxd,17.50,Not Applicable,
Department for Business Energy and Industrial Strategy,Intellectual Property Office,13/12/2016, 2 Minute Smile,People Places & Serv Direct,Amazon UK Retail,H57720161215sojtdukge,30.00,Not Applicable,
Department for Business Energy and Industrial Strategy,Intellectual Property Office,10/12/2016, 2 Minute Smile,People Places & Serv Direct,Poundland Ltd 1005,H57720161213wswrumtsb,1.00,Not Applicable,
Department for Business Energy and Industrial Strategy,Intellectual Property Office,14/12/2016,Office Stationery,People Places & Serv Direct,Www.Nisbets.Com,H57720161216jliiwjmur,58.75,Not Applicable,
Department for Business Energy and Industrial Strategy,Intellectual Property Office,13/12/2016,Office Stationery,People Places & Serv Direct,Amazon UK Retail Amazon.C,H57720161216vdctteblh,43.20,Not Applicable,
Department for Business Energy and Industrial Strategy,Intellectual Property Office,08/12/2016,Office Stationery,People Places & Serv Direct,Ring O Roses,H57720161210gjjkmvptl,80.00,Not Applicable,
Department for Business Energy and Industrial Strategy,Intellectual Property Office,08/12/2016,Office Stationery,People Places & Serv Direct,Amazon UK Marketplace,H57720161210wnqowsyue,15.94,Not Applicable,
Department for Business Energy and Industrial Strategy,Intellectual Property Office,07/12/2016,Office Stationery,People Places & Serv Direct,Amazon UK Marketplace,H57720161209pqybhphtr,29.84,Not Applicable,
Department for Business Energy and Industrial Strategy,Intellectual Property Office,30/11/2016,Office Stationery,People Places & Serv Direct,Amazon UK Retail,H57720161202nasrifafi,43.68,Not Applicable,
Department for Business Energy and Industrial Strategy,Intellectual Property Office,19/12/2016,Minor Works-Goods,People Places & Serv Direct,Newport Locksmiths Ltd,H57720161221kkxnzypuu,64.80,Not Applicable,
Department for Business Energy and Industrial Strategy,Intellectual Property Office,07/12/2016,Minor Works-Goods,People Places & Serv Direct,Amazon UK Marketplace,H57720161209qrovjebef,59.98,Not Applicable,
Department for Business Energy and Industrial Strategy,Intellectual Property Office,20/12/2016,Entertainment,International Policy Directorate,Crowne Plaza,H57720161223dnbezeewe,400.00,Not Applicable,
Department for Business Energy and Industrial Strategy,Intellectual Property Office,20/12/2016,Entertainment,International Policy Directorate,Crowne Plaza,H57720161223eidsqdygt,455.00,Not Applicable,
Department for Business Energy and Industrial Strategy,Intellectual Property Office,14/12/2016,Entertainment,International Policy Directorate,Grand Imperial Restaur,H57720161216yvuduxwao,108.00,Not Applicable,
Department for Business Energy and Industrial Strategy,Intellectual Property Office,02/12/2016,T&S O-seas excl EPOQUE,International Policy Directorate,Jardine Travel Limited,H57720161207hfchrtjdd,43.11,Not Applicable,
Department for Business Energy and Industrial Strategy,Intellectual Property Office,08/12/2016,CIMS Printing,Patent Directorate,Society Of Petroleum Engi,H57720161210qhqbkjbdx,20.52,Not Applicable,
Department for Business Energy and Industrial Strategy,Intellectual Property Office,30/11/2016,Overseas Patent Specifications,Patent Directorate,The Optical Society-Osa,H57720161202oierqmnav,29.03,Not Applicable,
Department for Business Energy and Industrial Strategy,Intellectual Property Office,14/12/2016,Advertising Distribution,Innovation Directorate,Co-Op Group Food,H57720161216xvgpqbciz,1.78,Not Applicable,
Department for Business Energy and Industrial Strategy,Intellectual Property Office,13/12/2016,Advertising Distribution,Innovation Directorate,Www.Conceptfurniture.C,H57720161215fedpadubp,333.60,Not Applicable,
Department for Business Energy and Industrial Strategy,Intellectual Property Office,07/12/2016,Advertising Distribution,Innovation Directorate,Twitonomy.Com,H57720161209dwlgqhgwq,15.57,Not Applicable,
Department for Business Energy and Industrial Strategy,Intellectual Property Office,07/12/2016,Advertising Distribution,Innovation Directorate,Wwwthebizexposcom,H57720161209frtbhyege,178.80,Not Applicable,
Department for Business Energy and Industrial Strategy,Intellectual Property Office,07/12/2016,Advertising Distribution,Innovation Directorate,Paypal,H57720161209qrvjivwht,372.00,Not Applicable,
Department for Business Energy and Industrial Strategy,Intellectual Property Office,02/12/2016,Advertising Distribution,Innovation Directorate,Amazon UK Marketplace,H57720161206benqasfpj,7.77,Not Applicable,
Department for Business Energy and Industrial Strategy,Intellectual Property Office,02/12/2016,Advertising Distribution,Innovation Directorate,Amazon UK Marketplace,H57720161206ggnvgenqw,11.91,Not Applicable,
Department for Business Energy and Industrial Strategy,Intellectual Property Office,20/12/2016,Network and infrastructure H/W,IT Directorate,Amazon UK Retail,H57720161222lndlaaear,15.16,Not Applicable,
Department for Business Energy and Industrial Strategy,Intellectual Property Office,13/12/2016,Network and infrastructure H/W,IT Directorate,Amazon UK Marketplace,H57720161215wtxxgmnuv,69.08,Not Applicable,
Department for Business Energy and Industrial Strategy,Intellectual Property Office,09/12/2016,Network and infrastructure H/W,IT Directorate,Ebuyer (UK) Ltd,H57720161213rebgzhhom,469.26,Not Applicable,
Department for Business Energy and Industrial Strategy,Intellectual Property Office,08/12/2016,Network and infrastructure H/W,IT Directorate,Amazon UK Marketplace,H57720161210nmjtflzsj,501.83,Not Applicable,
Department for Business Energy and Industrial Strategy,Intellectual Property Office,08/12/2016,Network and infrastructure H/W,IT Directorate,Amazon UK Retail,H57720161210uezogbbit,314.82,Not Applicable,
Department for Business Energy and Industrial Strategy,Intellectual Property Office,01/12/2016,Network and infrastructure H/W,IT Directorate,Amazon UK Marketplace,H57720161203hqlqogpkq,167.76,Not Applicable,
Department for Business Energy and Industrial Strategy,Intellectual Property Office,01/12/2016,Network and infrastructure H/W,IT Directorate,Odg*projectorlampswrld,H57720161203rsezdcddh,92.38,Not Applicable,
Department for Business Energy and Industrial Strategy,Intellectual Property Office,30/11/2016,Network and infrastructure H/W,IT Directorate,Amazon UK Retail Amazon.C,H57720161202feuvkbliv,89.97,Not Applicable,
Department for Business Energy and Industrial Strategy,Intellectual Property Office,08/12/2016,Entertainment,Patent Directorate,Asda Superstore 4928,H57720161210sknngxphj,28.84,Not Applicable,
Department for Business Energy and Industrial Strategy,Intellectual Property Office,26/12/2016,Books,Innovation Directorate,Times Newspapers Ltd,H57720161229fhvltoytv,26.00,Not Applicable,
Department for Business Energy and Industrial Strategy,Intellectual Property Office,15/12/2016,Software Maintenance,Trade Mark Directorate,The Intellectual Property,H57720161217alavbruzn,-50.00,Not Applicable,
Department for Business Energy and Industrial Strategy,Intellectual Property Office,15/12/2016,Software Maintenance,Trade Mark Directorate,The Intellectual Property,H57720161217ntauplykg,-50.00,Not Applicable,
Department for Business Energy and Industrial Strategy,Intellectual Property Office,15/12/2016,Software Maintenance,Trade Mark Directorate,The Intellectual Property,H57720161217snofhuljv,-50.00,Not Applicable,
Department for Business Energy and Industrial Strategy,Intellectual Property Office,15/12/2016,Software Maintenance,Trade Mark Directorate,The Intellectual Property,H57720161217srdfdsrft,-50.00,Not Applicable,
Department for Business Energy and Industrial Strategy,Intellectual Property Office,15/12/2016,Software Maintenance,Trade Mark Directorate,The Intellectual Property,H57720161217xxwgofwwg,-70.00,Not Applicable,
Department for Business Energy and Industrial Strategy,Intellectual Property Office,07/12/2016,Software Maintenance,Trade Mark Directorate,The Intellectual Property,H57720161209okxivfzcs,50.00,Not Applicable,
Department for Business Energy and Industrial Strategy,Intellectual Property Office,07/12/2016,Software Maintenance,Trade Mark Directorate,The Intellectual Property,H57720161209qlnnmpwkf,50.00,Not Applicable,
Department for Business Energy and Industrial Strategy,Intellectual Property Office,07/12/2016,Software Maintenance,Trade Mark Directorate,The Intellectual Property,H57720161209uhrhntgkh,70.00,Not Applicable,
Department for Business Energy and Industrial Strategy,Intellectual Property Office,22/12/2016,Office Stationery,Finance Directorate,Cartridge Save,H57720161224ubmpewvru,169.75,Not Applicable,
Department for Business Energy and Industrial Strategy,Intellectual Property Office,02/12/2016,Perpetual Licences,IT Directorate,Websitepulse.Com,H57720161206qqzcxtcbg,81.27,Not Applicable,
Department for Business Energy and Industrial Strategy,Intellectual Property Office,16/12/2016,Perpetual Licences,IT Directorate,Cloudflare,H57720161220wlxtvcxto,16.63,Not Applicable,
Department for Business Energy and Industrial Strategy,Intellectual Property Office,30/11/2016,Software Maintenance,IT Directorate,Msft *<e01002zsyo>,H57720161203lyqjxgrcu,246.14,Not Applicable,
Department for Business Energy and Industrial Strategy,Intellectual Property Office,15/12/2016,Books,Trade Mark Directorate,The Intellectual Property,H57720161217qbjsmjlvr,-100.00,Not Applicable,
Department for Business Energy and Industrial Strategy,Intellectual Property Office,08/12/2016,Books,Trade Mark Directorate,The Intellectual Property,H57720161210ixtodqwzj,100.00,Not Applicable,
Department for Business Energy and Industrial Strategy,Intellectual Property Office,07/12/2016,Books,IT Directorate,Www.Stuff-Uk.Net,H57720161209kujfdyyxm,335.12,Not Applicable,
Department for Business Energy and Industrial Strategy,Intellectual Property Office,03/12/2016,Books,IT Directorate,Amazon UK Retail,H57720161206bdcgkfibv,28.98,Not Applicable,
Department for Business Energy and Industrial Strategy,Intellectual Property Office,23/12/2016,Office Stationery,People Places & Serv Direct,Amazon UK Marketplace,H57720161227ehncivoip,580.80,Not Applicable,
Department for Business Energy and Industrial Strategy,Intellectual Property Office,15/12/2016,Office Stationery,People Places & Serv Direct,Nukey,H57720161217gulugxqtl,21.60,Not Applicable,
Department for Business Energy and Industrial Strategy,Intellectual Property Office,15/12/2016,Office Stationery,People Places & Serv Direct,Securedatarecyclin,H57720161217nqnwuqwuk,894.00,Not Applicable,
Department for Business Energy and Industrial Strategy,Intellectual Property Office,13/12/2016,Office Stationery,People Places & Serv Direct,Safetyshop,H57720161215kaotykrul,48.68,Not Applicable,
Department for Business Energy and Industrial Strategy,Intellectual Property Office,09/12/2016,Office Stationery,People Places & Serv Direct,Safetyshop,H57720161213apxwzrhte,14.54,Not Applicable,
Department for Business Energy and Industrial Strategy,Intellectual Property Office,09/12/2016,Office Stationery,People Places & Serv Direct,Amazon UK Marketplace,H57720161213ertmuurkj,13.08,Not Applicable,
Department for Business Energy and Industrial Strategy,Intellectual Property Office,09/12/2016,Office Stationery,People Places & Serv Direct,Screwfix Direct,H57720161213mdgdjmjfj,38.98,Not Applicable,
Department for Business Energy and Industrial Strategy,Intellectual Property Office,09/12/2016,Office Stationery,People Places & Serv Direct,Nukey,H57720161213vtevmgbnv,9.60,Not Applicable,
Department for Business Energy and Industrial Strategy,Intellectual Property Office,07/12/2016,Office Stationery,People Places & Serv Direct,Rrc,H57720161210kahqngvyt,30.00,Not Applicable,
Department for Business Energy and Industrial Strategy,Intellectual Property Office,05/12/2016,Office Stationery,People Places & Serv Direct,Amazon UK Marketplace,H57720161207iidxpozme,26.39,Not Applicable,
Department for Business Energy and Industrial Strategy,Intellectual Property Office,01/12/2016,Office Stationery,People Places & Serv Direct,Amazon UK Retail Amazon.C,H57720161203etxespofv,22.80,Not Applicable,
Department for Business Energy and Industrial Strategy,Intellectual Property Office,07/12/2016,Career Development Services,Patent Directorate,Theassociationspecia,H57720161208shumcnqgt,-263.73,Not Applicable,
Department for Business Energy and Industrial Strategy,Intellectual Property Office,30/11/2016,T&S UK,Projects,Sofitel Heathrow,H57720161202bnbreanlf,-237.00,Not Applicable,
Department for Business Energy and Industrial Strategy,Intellectual Property Office,15/12/2016,Office Stationery,People Places & Serv Direct,South Wales Suppliers,H57720161217tgrjjudxj,220.30,Not Applicable,
Department for Business Energy and Industrial Strategy,Intellectual Property Office,28/12/2016,Perpetual Licences,IT Directorate,Trello,H57720161230sorlvyorh,25.32,Not Applicable,
Department for Business Energy and Industrial Strategy,Intellectual Property Office,09/12/2016,Career Development Services,IT Directorate,Amazon UK Marketplace,H57720161213ftktqtfet,11.99,Not Applicable,
Department for Business Energy and Industrial Strategy,Intellectual Property Office,09/12/2016,Career Development Services,IT Directorate,Amazon UK Retail Amazon.C,H57720161213itosjxvnx,17.99,Not Applicable,
Department for Business Energy and Industrial Strategy,Intellectual Property Office,16/12/2016,Seminars and Confereces,People Places & Serv Direct,Przcharge.Prezi.Com,H57720161220cbgippggr,15.60,Not Applicable,
Department for Business Energy and Industrial Strategy,Intellectual Property Office,08/12/2016,Seminars and Confereces,People Places & Serv Direct,Iceland 201,H57720161210ihpuovill,18.15,Not Applicable,
Department for Business Energy and Industrial Strategy,Intellectual Property Office,01/12/2016,Seminars and Confereces,People Places & Serv Direct,Coveritlive Scribbl Cov,H57720161203pkqxtxiit,40.36,Not Applicable,
Department for Business Energy and Industrial Strategy,Intellectual Property Office,20/12/2016,Advertising Distribution,Innovation Directorate,Campaignmonitor.Co,H57720161221unymbejbu,85.57,Not Applicable,
Department for Business Energy and Industrial Strategy,Intellectual Property Office,16/12/2016,T&S O-seas excl EPOQUE,Patent Directorate,Salon De L Automobile,H57720161220qiqsmysxh,25.78,Not Applicable,
Department for Business Energy and Industrial Strategy,Intellectual Property Office,12/12/2016,Office Stationery,People Places & Serv Direct,Envatomarket32105754,H57720161214ryzduskqe,16.73,Not Applicable,
Department for Business Energy and Industrial Strategy,Intellectual Property Office,07/12/2016,Office Stationery,People Places & Serv Direct,Www.Canford.Co.Uk,H57720161209vmffiwijg,62.40,Not Applicable,
Department for Business Energy and Industrial Strategy,Intellectual Property Office,02/12/2016,Office Stationery,People Places & Serv Direct,Amazon UK Marketplace,H57720161206zcgkqqtub,79.53,Not Applicable,
Department for Business Energy and Industrial Strategy,Intellectual Property Office,28/12/2016,Career Development Services,Innovation Directorate,Www.Westminster-Briefi,H57720161230hmtfysoyf,300.00,Not Applicable,
Department for Business Energy and Industrial Strategy,Intellectual Property Office,22/12/2016,Career Development Services,IT Directorate,Tms Development,H57720161224rdbtowuno,148.72,Not Applicable,
Department for Business Energy and Industrial Strategy,Intellectual Property Office,22/12/2016,Career Development Services,Patent Directorate,Www.Westminster-Briefi,H57720161224ubovjtxlt,257.14,Not Applicable,
Department for Business Energy and Industrial Strategy,Intellectual Property Office,22/12/2016,Career Development Services,Patent Directorate,Www.Westminster-Briefi,H57720161224ubovjtxlt,257.14,Not Applicable,
Department for Business Energy and Industrial Strategy,Intellectual Property Office,22/12/2016,Career Development Services,Patent Directorate,Www.Westminster-Briefi,H57720161224ubovjtxlt,257.14,Not Applicable,
Department for Business Energy and Industrial Strategy,Intellectual Property Office,22/12/2016,Career Development Services,Trade Mark Directorate,Www.Westminster-Briefi,H57720161224ubovjtxlt,257.14,Not Applicable,
Department for Business Energy and Industrial Strategy,Intellectual Property Office,22/12/2016,Career Development Services,Trade Mark Directorate,Www.Westminster-Briefi,H57720161224ubovjtxlt,257.14,Not Applicable,
Department for Business Energy and Industrial Strategy,Intellectual Property Office,22/12/2016,Career Development Services,Trade Mark Directorate,Www.Westminster-Briefi,H57720161224ubovjtxlt,257.14,Not Applicable,
Department for Business Energy and Industrial Strategy,Intellectual Property Office,22/12/2016,Career Development Services,People Places & Serv Direct,Www.Westminster-Briefi,H57720161224ubovjtxlt,257.16,Not Applicable,
Department for Business Energy and Industrial Strategy,Intellectual Property Office,22/12/2016,Career Development Services,Patent Directorate,Www.Westminster-Briefi,H57720161224xnsaxopkd,300.00,Not Applicable,
Department for Business Energy and Industrial Strategy,Intellectual Property Office,21/12/2016,Career Development Services,People Places & Serv Direct,Opp Ltd Sterling Web,H57720161223pjypxjuxq,46.00,Not Applicable,
Department for Business Energy and Industrial Strategy,Intellectual Property Office,21/12/2016,Career Development Services,People Places & Serv Direct,Opp Ltd Sterling Web,H57720161223swcbpniud,27.50,Not Applicable,
Department for Business Energy and Industrial Strategy,Intellectual Property Office,20/12/2016,Career Development Services,People Places & Serv Direct,Amazon UK Retail,H57720161222elnfdthgu,43.94,Not Applicable,
Department for Business Energy and Industrial Strategy,Intellectual Property Office,19/12/2016,Career Development Services,People Places & Serv Direct,Www.Ukces.Org.Uk,H57720161221oegdafwnk,209.89,Not Applicable,
Department for Business Energy and Industrial Strategy,Intellectual Property Office,19/12/2016,Career Development Services,People Places & Serv Direct,"Amazon Svcs Europe,sar",H57720161221qhsvxsvtx,28.44,Not Applicable,
Department for Business Energy and Industrial Strategy,Intellectual Property Office,07/12/2016,Career Development Services,People Places & Serv Direct,Asda Superstore 4928,H57720161209terhixwgh,8.75,Not Applicable,
Department for Business Energy and Industrial Strategy,Intellectual Property Office,07/12/2016,Career Development Services,People Places & Serv Direct,Paypal,H57720161209yjgcgvqsw,1617.58,Not Applicable,
Department for Business Energy and Industrial Strategy,Intellectual Property Office,06/12/2016,Career Development Services,People Places & Serv Direct,Opp Ltd Sterling Web,H57720161208vjvrzgvud,559.80,Not Applicable,
Department for Business Energy and Industrial Strategy,Intellectual Property Office,05/12/2016,Career Development Services,People Places & Serv Direct,Subway,H57720161207hungqclqr,18.00,Not Applicable,
Department for Business Energy and Industrial Strategy,Intellectual Property Office,05/12/2016,Career Development Services,Finance Directorate,Subway,H57720161207pogsdiqju,108.00,Not Applicable,
Department for Business Energy and Industrial Strategy,Intellectual Property Office,01/12/2016,Career Development Services,People Places & Serv Direct,Www.Ukces.Org.Uk,H57720161203bbqureoca,209.89,Not Applicable,
Department for Business Energy and Industrial Strategy,Intellectual Property Office,15/12/2016,Accommodation,People Places & Services Directorate,BNPPRE Client Common Receipts,114000-135,627.00,Not Applicable,
Department for Business Energy and Industrial Strategy,Intellectual Property Office,05/12/2016,Accommodation,People Places & Services Directorate,Thomas Waste Management Ltd,164294,648.00,Not Applicable,
Department for Business Energy and Industrial Strategy,Intellectual Property Office,05/12/2016,Accommodation,People Places & Services Directorate,Healthy Workstations Ltd,29866,846.80,Not Applicable,
Department for Business Energy and Industrial Strategy,Intellectual Property Office,15/12/2016,Accommodation,People Places & Services Directorate,BNPPRE Client Common Receipts,114000-132,848.53,Not Applicable,
Department for Business Energy and Industrial Strategy,Intellectual Property Office,12/12/2016,Accommodation,People Places & Services Directorate,Pro Investments Limited,96584,1026.44,Not Applicable,
Department for Business Energy and Industrial Strategy,Intellectual Property Office,14/12/2016,Accommodation,People Places & Services Directorate,Continua Ltd,R101202,1158.00,Not Applicable,
Department for Business Energy and Industrial Strategy,Intellectual Property Office,15/12/2016,Accommodation,People Places & Services Directorate,BNPPRE Client Common Receipts,114000-136,1206.41,Not Applicable,
Department for Business Energy and Industrial Strategy,Intellectual Property Office,13/12/2016,Accommodation,People Places & Services Directorate,HFX Ltd,26172,1245.38,Not Applicable,
Department for Business Energy and Industrial Strategy,Intellectual Property Office,06/12/2016,Accommodation,People Places & Services Directorate,EDF ENERGY,2345223,1474.56,Not Applicable,
Department for Business Energy and Industrial Strategy,Intellectual Property Office,15/12/2016,Accommodation,People Places & Services Directorate,BNPPRE Client Common Receipts,114000-83,1555.97,Not Applicable,
Department for Business Energy and Industrial Strategy,Intellectual Property Office,15/12/2016,Accommodation,People Places & Services Directorate,Pressure Coolers Ltd,620817,1674.00,Not Applicable,
Department for Business Energy and Industrial Strategy,Intellectual Property Office,02/12/2016,Accommodation,People Places & Services Directorate,CDI Group plc,44349,1972.46,Not Applicable,
Department for Business Energy and Industrial Strategy,Intellectual Property Office,02/12/2016,Accommodation,People Places & Services Directorate,Quality Floorcare Ltd,15412,2160.00,Not Applicable,
Department for Business Energy and Industrial Strategy,Intellectual Property Office,16/12/2016,Accommodation,People Places & Services Directorate,Corona Energy,11632786,3198.29,Not Applicable,
Department for Business Energy and Industrial Strategy,Intellectual Property Office,14/12/2016,Accommodation,People Places & Services Directorate,Healthy Workstations Ltd,29948,5174.40,Not Applicable,
Department for Business Energy and Industrial Strategy,Intellectual Property Office,05/12/2016,Accommodation,People Places & Services Directorate,ENGIE Services Limited,1800015261,6720.00,Not Applicable,
Department for Business Energy and Industrial Strategy,Intellectual Property Office,09/12/2016,Accommodation,People Places & Services Directorate,Infineon Technologies,IRNPT1641,8500.80,Not Applicable,
Department for Business Energy and Industrial Strategy,Intellectual Property Office,01/12/2016,Accommodation,People Places & Services Directorate,Quality Floorcare Ltd,15435,9096.00,Not Applicable,
Department for Business Energy and Industrial Strategy,Intellectual Property Office,12/12/2016,Accommodation,People Places & Services Directorate,Pro Investments Limited,96583,21000.00,Not Applicable,
Department for Business Energy and Industrial Strategy,Intellectual Property Office,06/12/2016,Accommodation,People Places & Services Directorate,EDF ENERGY,2345268,28657.58,Not Applicable,
Department for Business Energy and Industrial Strategy,Intellectual Property Office,15/12/2016,Accommodation,People Places & Services Directorate,Caerphilly County Borough Council,510317691-11MAR,28917.00,Not Applicable,
Department for Business Energy and Industrial Strategy,Intellectual Property Office,22/12/2016,Accommodation,People Places & Services Directorate,Department For Business Innovation & Ski,6.1511E+11,68312.69,Not Applicable,
Department for Business Energy and Industrial Strategy,Intellectual Property Office,15/12/2016,Accommodation,People Places & Services Directorate,BNPPRE Client Common Receipts,114000-97,72451.39,Not Applicable,
Department for Business Energy and Industrial Strategy,Intellectual Property Office,22/12/2016,Accommodation,People Places & Services Directorate,Department For Business Innovation & Ski,6.1511E+11,194130.00,Not Applicable,
Department for Business Energy and Industrial Strategy,Intellectual Property Office,29/12/2016,Accommodation,People Places & Services Directorate,Office for National Statistics,2025015,279090.00,Not Applicable,
Department for Business Energy and Industrial Strategy,Intellectual Property Office,15/12/2016,Accommodation,People Places & Services Directorate,BNPPRE Client Common Receipts,114000-121,285006.06,Not Applicable,
Department for Business Energy and Industrial Strategy,Intellectual Property Office,09/12/2016,Information Technology,People Places & Services Directorate,Insight Directorate (UK) Ltd,3168110,-5259.00,Not Applicable,
Department for Business Energy and Industrial Strategy,Intellectual Property Office,19/12/2016,Information Technology,Projects,Top Level Computing,4809,-5148.00,Not Applicable,
Department for Business Energy and Industrial Strategy,Intellectual Property Office,07/12/2016,Information Technology,Innovation Directorate,Bell Integrated Communications Ltd,SINV-2364,504.00,Not Applicable,
Department for Business Energy and Industrial Strategy,Intellectual Property Office,14/12/2016,Information Technology,It Directorateorate,JetBrains,INVCZ632576,748.29,Not Applicable,
Department for Business Energy and Industrial Strategy,Intellectual Property Office,15/12/2016,Information Technology,Patent Directorateorate,Questel Ireland Ltd,161215,858.37,Not Applicable,
Department for Business Energy and Industrial Strategy,Intellectual Property Office,16/12/2016,Information Technology,Projects,Top Level Computing,4781,932.64,Not Applicable,
Department for Business Energy and Industrial Strategy,Intellectual Property Office,12/12/2016,Information Technology,It Directorateorate,MISCO,11185490,1260.00,Not Applicable,
Department for Business Energy and Industrial Strategy,Intellectual Property Office,28/12/2016,Information Technology,It Directorateorate,LA International Computer Consultants Lt,LA412458,1527.28,Not Applicable,
Department for Business Energy and Industrial Strategy,Intellectual Property Office,13/12/2016,Information Technology,It Directorateorate,Capita Business Services  Ltd,LO10163960,1587.12,Not Applicable,
Department for Business Energy and Industrial Strategy,Intellectual Property Office,13/12/2016,Information Technology,It Directorateorate,LA International Computer Consultants Lt,LA411181,2087.27,Not Applicable,
Department for Business Energy and Industrial Strategy,Intellectual Property Office,16/12/2016,Information Technology,It Directorateorate,LA International Computer Consultants Lt,LA411610,2103.49,Not Applicable,
Department for Business Energy and Industrial Strategy,Intellectual Property Office,09/12/2016,Information Technology,Projects,Miggle Ltd,MIG-IPO-001-019,2133.00,Not Applicable,
Department for Business Energy and Industrial Strategy,Intellectual Property Office,02/12/2016,Information Technology,It Directorateorate,LA International Computer Consultants Lt,LA408961,2134.82,Not Applicable,
Department for Business Energy and Industrial Strategy,Intellectual Property Office,05/12/2016,Information Technology,It Directorateorate,SOFTWARE BOX LTD,INV86302,2159.47,Not Applicable,
Department for Business Energy and Industrial Strategy,Intellectual Property Office,14/12/2016,Information Technology,It Directorateorate,CSA WAVERLEY,SINV-103313,2277.65,Not Applicable,
Department for Business Energy and Industrial Strategy,Intellectual Property Office,14/12/2016,Information Technology,Projects,Advanced Business Solutions,ARBK-99041130,2508.00,Not Applicable,
Department for Business Energy and Industrial Strategy,Intellectual Property Office,05/12/2016,Information Technology,It Directorateorate,Capita Business Services  Ltd,LO10161863,2517.60,Not Applicable,
Department for Business Energy and Industrial Strategy,Intellectual Property Office,13/12/2016,Information Technology,It Directorateorate,Capita Business Services  Ltd,LO10163960,2517.60,Not Applicable,
Department for Business Energy and Industrial Strategy,Intellectual Property Office,16/12/2016,Information Technology,It Directorateorate,Capita Business Services  Ltd,LO10165383,2517.60,Not Applicable,
Department for Business Energy and Industrial Strategy,Intellectual Property Office,14/12/2016,Information Technology,It Directorateorate,CSA WAVERLEY,SINV103312,2525.09,Not Applicable,
Department for Business Energy and Industrial Strategy,Intellectual Property Office,13/12/2016,Information Technology,It Directorateorate,Capita Business Services  Ltd,LO10163960,2671.27,Not Applicable,
Department for Business Energy and Industrial Strategy,Intellectual Property Office,29/12/2016,Information Technology,It Directorateorate,Responsiv Solutions Limited,RSL0145,2754.32,Not Applicable,
Department for Business Energy and Industrial Strategy,Intellectual Property Office,28/12/2016,Information Technology,It Directorateorate,Capita Business Services  Ltd,LO10166599,2970.80,Not Applicable,
Department for Business Energy and Industrial Strategy,Intellectual Property Office,02/12/2016,Information Technology,It Directorateorate,LA International Computer Consultants Lt,LA408962,3146.88,Not Applicable,
Department for Business Energy and Industrial Strategy,Intellectual Property Office,28/12/2016,Information Technology,It Directorateorate,LA International Computer Consultants Lt,LA412459,3146.88,Not Applicable,
Department for Business Energy and Industrial Strategy,Intellectual Property Office,05/12/2016,Information Technology,It Directorateorate,Capita Business Services  Ltd,LO10161863,3201.68,Not Applicable,
Department for Business Energy and Industrial Strategy,Intellectual Property Office,16/12/2016,Information Technology,It Directorateorate,Capita Business Services  Ltd,LO10165383,3201.68,Not Applicable,
Department for Business Energy and Industrial Strategy,Intellectual Property Office,28/12/2016,Information Technology,It Directorateorate,Capita Business Services  Ltd,LO10166599,3201.68,Not Applicable,
Department for Business Energy and Industrial Strategy,Intellectual Property Office,13/12/2016,Information Technology,It Directorateorate,Capita Business Services  Ltd,LO10163960,3288.22,Not Applicable,
Department for Business Energy and Industrial Strategy,Intellectual Property Office,28/12/2016,Information Technology,It Directorateorate,Capita Business Services  Ltd,LO10166599,3420.13,Not Applicable,
Department for Business Energy and Industrial Strategy,Intellectual Property Office,12/12/2016,Information Technology,It Directorateorate,SOFTWARE BOX LTD,INV85968,3748.61,Not Applicable,
Department for Business Energy and Industrial Strategy,Intellectual Property Office,28/12/2016,Information Technology,Patent Directorateorate,Society of Exploration Geophysicists,21000352575,4198.16,Not Applicable,
Department for Business Energy and Industrial Strategy,Intellectual Property Office,16/12/2016,Information Technology,Projects,Top Level Computing,4784,5148.00,Not Applicable,
Department for Business Energy and Industrial Strategy,Intellectual Property Office,12/12/2016,Information Technology,It Directorateorate,MISCO,11185231,5450.85,Not Applicable,
Department for Business Energy and Industrial Strategy,Intellectual Property Office,13/12/2016,Information Technology,It Directorateorate,Capita Business Services  Ltd,LO10163960,5512.10,Not Applicable,
Department for Business Energy and Industrial Strategy,Intellectual Property Office,16/12/2016,Information Technology,It Directorateorate,Capita Business Services  Ltd,LO10165383,5530.62,Not Applicable,
Department for Business Energy and Industrial Strategy,Intellectual Property Office,05/12/2016,Information Technology,It Directorateorate,Capita Business Services  Ltd,LO10161863,6160.05,Not Applicable,
Department for Business Energy and Industrial Strategy,Intellectual Property Office,19/12/2016,Information Technology,It Directorateorate,LA International Computer Consultants Lt,LA411611,6293.76,Not Applicable,
Department for Business Energy and Industrial Strategy,Intellectual Property Office,06/12/2016,Information Technology,Projects,T-SYSTEMS LIMITED,9430472296,6357.88,Not Applicable,
Department for Business Energy and Industrial Strategy,Intellectual Property Office,06/12/2016,Information Technology,Projects,T-SYSTEMS LIMITED,9430472297,6357.91,Not Applicable,
Department for Business Energy and Industrial Strategy,Intellectual Property Office,06/12/2016,Information Technology,Projects,T-SYSTEMS LIMITED,9430472298,6357.96,Not Applicable,
Department for Business Energy and Industrial Strategy,Intellectual Property Office,05/12/2016,Information Technology,It Directorateorate,Capita Business Services  Ltd,LO10161863,6698.29,Not Applicable,
Department for Business Energy and Industrial Strategy,Intellectual Property Office,12/12/2016,Information Technology,It Directorateorate,MISCO,11184505,6986.51,Not Applicable,
Department for Business Energy and Industrial Strategy,Intellectual Property Office,14/12/2016,Information Technology,It Directorateorate,Probrand Ltd,OP-I557355,7959.24,Not Applicable,
Department for Business Energy and Industrial Strategy,Intellectual Property Office,21/12/2016,Information Technology,Projects,MS MODERNISATION LTD,104160076INV,8294.11,Not Applicable,
Department for Business Energy and Industrial Strategy,Intellectual Property Office,05/12/2016,Information Technology,It Directorateorate,Capita Business Services  Ltd,LO10161863,8364.70,Not Applicable,
Department for Business Energy and Industrial Strategy,Intellectual Property Office,05/12/2016,Information Technology,It Directorateorate,Capita Business Services  Ltd,LO10161863,8452.15,Not Applicable,
Department for Business Energy and Industrial Strategy,Intellectual Property Office,05/12/2016,Information Technology,Projects,T-SYSTEMS LIMITED,9430461146,8483.85,Not Applicable,
Department for Business Energy and Industrial Strategy,Intellectual Property Office,14/12/2016,Information Technology,It Directorateorate,CSA WAVERLEY,SINV103314,8644.57,Not Applicable,
Department for Business Energy and Industrial Strategy,Intellectual Property Office,05/12/2016,Information Technology,Projects,T-SYSTEMS LIMITED,9430461151,8974.05,Not Applicable,
Department for Business Energy and Industrial Strategy,Intellectual Property Office,05/12/2016,Information Technology,Projects,T-SYSTEMS LIMITED,9430461150,9161.35,Not Applicable,
Department for Business Energy and Industrial Strategy,Intellectual Property Office,05/12/2016,Information Technology,Projects,T-SYSTEMS LIMITED,9430461145,9275.37,Not Applicable,
Department for Business Energy and Industrial Strategy,Intellectual Property Office,05/12/2016,Information Technology,Projects,T-SYSTEMS LIMITED,9430461152,9275.38,Not Applicable,
Department for Business Energy and Industrial Strategy,Intellectual Property Office,05/12/2016,Information Technology,Projects,T-SYSTEMS LIMITED,9430461153,9275.38,Not Applicable,
Department for Business Energy and Industrial Strategy,Intellectual Property Office,05/12/2016,Information Technology,Projects,T-SYSTEMS LIMITED,9430461154,9275.38,Not Applicable,
Department for Business Energy and Industrial Strategy,Intellectual Property Office,05/12/2016,Information Technology,Projects,T-SYSTEMS LIMITED,9430461147,9275.63,Not Applicable,
Department for Business Energy and Industrial Strategy,Intellectual Property Office,05/12/2016,Information Technology,Projects,T-SYSTEMS LIMITED,9430461149,9296.21,Not Applicable,
Department for Business Energy and Industrial Strategy,Intellectual Property Office,05/12/2016,Information Technology,Projects,T-SYSTEMS LIMITED,9430461148,9671.95,Not Applicable,
Department for Business Energy and Industrial Strategy,Intellectual Property Office,28/12/2016,Information Technology,It Directorateorate,Capita Business Services  Ltd,LO10166599,11446.77,Not Applicable,
Department for Business Energy and Industrial Strategy,Intellectual Property Office,15/12/2016,Information Technology,Patent Directorateorate,STN,9340304478,12329.25,Not Applicable,
Department for Business Energy and Industrial Strategy,Intellectual Property Office,12/12/2016,Information Technology,Projects,SANDHILL CONSULTANTS LTD,IN4058835,13740.00,Not Applicable,
Department for Business Energy and Industrial Strategy,Intellectual Property Office,19/12/2016,Information Technology,Projects,Top Level Computing,4737,13923.12,Not Applicable,
Department for Business Energy and Industrial Strategy,Intellectual Property Office,16/12/2016,Information Technology,It Directorateorate,Capita Business Services  Ltd,LO10165383,14756.30,Not Applicable,
Department for Business Energy and Industrial Strategy,Intellectual Property Office,09/12/2016,Information Technology,People Places & Services Directorate,Insight Directorate (UK) Ltd,2904598,14898.00,Not Applicable,
Department for Business Energy and Industrial Strategy,Intellectual Property Office,15/12/2016,Information Technology,It Directorateorate,Equal Experts UK Limited,INV-2082,15000.00,Not Applicable,
Department for Business Energy and Industrial Strategy,Intellectual Property Office,16/12/2016,Information Technology,It Directorateorate,Capita Business Services  Ltd,LO10165383,15161.22,Not Applicable,
Department for Business Energy and Industrial Strategy,Intellectual Property Office,28/12/2016,Information Technology,It Directorateorate,Capita Business Services  Ltd,LO10166599,16532.44,Not Applicable,
Department for Business Energy and Industrial Strategy,Intellectual Property Office,09/12/2016,Information Technology,Projects,FIRSTLIOT LTD,44,17940.00,Not Applicable,
Department for Business Energy and Industrial Strategy,Intellectual Property Office,22/12/2016,Information Technology,Patent Directorateorate,IET Services Ltd,IEQ01354471,21678.00,Not Applicable,
Department for Business Energy and Industrial Strategy,Intellectual Property Office,28/12/2016,Information Technology,Projects,MS MODERNISATION LTD,104160086,23850.00,Not Applicable,
Department for Business Energy and Industrial Strategy,Intellectual Property Office,29/12/2016,Information Technology,It Directorateorate,Responsiv Solutions Limited,RSL0152,26387.12,Not Applicable,
Department for Business Energy and Industrial Strategy,Intellectual Property Office,08/12/2016,Information Technology,Patent Directorateorate,Beijing Zhong Xian Dian Zi Tech,20160516010,40145.81,Not Applicable,
Department for Business Energy and Industrial Strategy,Intellectual Property Office,16/12/2016,Information Technology,Projects,Top Level Computing,4797,40328.64,Not Applicable,
Department for Business Energy and Industrial Strategy,Intellectual Property Office,16/12/2016,Information Technology,Projects,Top Level Computing,4785,40893.12,Not Applicable,
Department for Business Energy and Industrial Strategy,Intellectual Property Office,08/12/2016,Information Technology,Projects,Net Service S.p.A,83-16,70439.22,Not Applicable,
Department for Business Energy and Industrial Strategy,Intellectual Property Office,29/12/2016,Information Technology,It Directorateorate,Responsiv Solutions Limited,RSL0099,79013.88,Not Applicable,
Department for Business Energy and Industrial Strategy,Intellectual Property Office,08/12/2016,Information Technology,It Directorateorate,Fujitsu Services Ltd,236992,86666.40,Not Applicable,
Department for Business Energy and Industrial Strategy,Intellectual Property Office,22/12/2016,Information Technology,It Directorateorate,Fujitsu Services Ltd,237547,86666.40,Not Applicable,
Department for Business Energy and Industrial Strategy,Intellectual Property Office,28/12/2016,Information Technology,Patent Directorateorate,European Patent Office,40264957,134229.94,Not Applicable,
Department for Business Energy and Industrial Strategy,Intellectual Property Office,01/12/2016,Information Technology,Patent Directorateorate,CONTENT ONLINE LTD,4880,145550.08,Not Applicable,
Department for Business Energy and Industrial Strategy,Intellectual Property Office,29/12/2016,Land & Buildings Gross,People Places & Services Directorate,Clarity,TR0043,5313.31,Not Applicable,
Department for Business Energy and Industrial Strategy,Intellectual Property Office,20/12/2016,Land & Buildings Gross,People Places & Services Directorate,Clarity,TR0042,8849.82,Not Applicable,
Department for Business Energy and Industrial Strategy,Intellectual Property Office,09/12/2016,Land & Buildings Gross,People Places & Services Directorate,Clarity,TR0040,10650.78,Not Applicable,
Department for Business Energy and Industrial Strategy,Intellectual Property Office,14/12/2016,Land & Buildings Gross,People Places & Services Directorate,Clarity,TR0041,11038.10,Not Applicable,
Department for Business Energy and Industrial Strategy,Intellectual Property Office,28/12/2016,Land & Buildings Gross,People Places & Services Directorate,Barclaycard Commercial,GPC-27DEC16,30384.17,Not Applicable,
Department for Business Energy and Industrial Strategy,Intellectual Property Office,14/12/2016,Legal & Hearings,Trade Mark Directorate,Government Legal Department,435558,41.17,Not Applicable,
Department for Business Energy and Industrial Strategy,Intellectual Property Office,14/12/2016,Legal & Hearings,Patent Directorateorate,Government Legal Department,435558,100.00,Not Applicable,
Department for Business Energy and Industrial Strategy,Intellectual Property Office,19/12/2016,Legal & Hearings,Patent Directorateorate,Government Legal Department,435639,215.28,Not Applicable,
Department for Business Energy and Industrial Strategy,Intellectual Property Office,12/12/2016,Legal & Hearings,Copyright & Enforcement Directorate,Ernst & Young LLP,GB10700038637,2622.00,Not Applicable,
Department for Business Energy and Industrial Strategy,Intellectual Property Office,07/12/2016,Legal & Hearings,Projects,Anthony Collins Solicitors LLP,274200,8970.00,Not Applicable,
Department for Business Energy and Industrial Strategy,Intellectual Property Office,13/12/2016,Legal & Hearings,Trade Mark Directorate,Government Legal Department,435814,11538.49,Not Applicable,
Department for Business Energy and Industrial Strategy,Intellectual Property Office,14/12/2016,Legal & Hearings,Patent Directorateorate,Government Legal Department,435558,12061.90,Not Applicable,
Department for Business Energy and Industrial Strategy,Intellectual Property Office,19/12/2016,Legal & Hearings,Trade Mark Directorate,Government Legal Department,435639,16076.75,Not Applicable,
Department for Business Energy and Industrial Strategy,Intellectual Property Office,08/12/2016,Marketing & Publicity,Innovation Directorate,Redbrick Enterprises Ltd,INV-0079,600.00,Not Applicable,
Department for Business Energy and Industrial Strategy,Intellectual Property Office,08/12/2016,Marketing & Publicity,Innovation Directorate,Chester Race Company Ltd,47767,672.80,Not Applicable,
Department for Business Energy and Industrial Strategy,Intellectual Property Office,07/12/2016,Marketing & Publicity,Innovation Directorate,LONDON INTERNATIONAL EXHIBITION CENTRE,131654,894.48,Not Applicable,
Department for Business Energy and Industrial Strategy,Intellectual Property Office,09/12/2016,Marketing & Publicity,Innovation Directorate,Bolt Removals Ltd,INV-0020,1020.00,Not Applicable,
Department for Business Energy and Industrial Strategy,Intellectual Property Office,01/12/2016,Marketing & Publicity,Innovation Directorate,EntMarkt Ltd,NO.E182,1200.00,Not Applicable,
Department for Business Energy and Industrial Strategy,Intellectual Property Office,05/12/2016,Marketing & Publicity,Innovation Directorate,Aardman Animations Ltd,33104,1539.60,Not Applicable,
Department for Business Energy and Industrial Strategy,Intellectual Property Office,21/12/2016,Marketing & Publicity,Innovation Directorate,Aardman Animations Ltd,33186,1539.60,Not Applicable,
Department for Business Energy and Industrial Strategy,Intellectual Property Office,08/12/2016,Marketing & Publicity,Innovation Directorate,Prysm ENC Ltd,INV-0580,1566.00,Not Applicable,
Department for Business Energy and Industrial Strategy,Intellectual Property Office,19/12/2016,Marketing & Publicity,Innovation Directorate,Venturefest Oxford Ltd,11199,1620.00,Not Applicable,
Department for Business Energy and Industrial Strategy,Intellectual Property Office,19/12/2016,Marketing & Publicity,Innovation Directorate,Ascential Events Limited,EV-SIN061798,2035.20,Not Applicable,
Department for Business Energy and Industrial Strategy,Intellectual Property Office,16/12/2016,Marketing & Publicity,Innovation Directorate,PRYSM MEDIA GROUP LTD,INV-6919,8400.00,Not Applicable,
Department for Business Energy and Industrial Strategy,Intellectual Property Office,12/12/2016,Marketing & Publicity,Innovation Directorate,Dun & Bradstreet Ltd,1451900,9082.80,Not Applicable,
Department for Business Energy and Industrial Strategy,Intellectual Property Office,07/12/2016,Marketing & Publicity,Innovation Directorate,Aardman Animations Ltd,33109,20685.00,Not Applicable,
Department for Business Energy and Industrial Strategy,Intellectual Property Office,21/12/2016,Marketing & Publicity,Innovation Directorate,Aardman Animations Ltd,33175,20685.00,Not Applicable,
Department for Business Energy and Industrial Strategy,Intellectual Property Office,29/12/2016,Miscellaneous Expenses General,Finance Directorate,VCUK TWC Facilities Division,16120411,12.06,Not Applicable,
Department for Business Energy and Industrial Strategy,Intellectual Property Office,29/12/2016,Miscellaneous Expenses General,Patent Directorateorate,VCUK TWC Facilities Division,16120411,14.40,Not Applicable,
Department for Business Energy and Industrial Strategy,Intellectual Property Office,29/12/2016,Miscellaneous Expenses General,Patent Directorateorate,VCUK TWC Facilities Division,16120411,69.84,Not Applicable,
Department for Business Energy and Industrial Strategy,Intellectual Property Office,29/12/2016,Miscellaneous Expenses General,Trade Mark Directorate,VCUK TWC Facilities Division,16120411,201.90,Not Applicable,
Department for Business Energy and Industrial Strategy,Intellectual Property Office,29/12/2016,Miscellaneous Expenses General,Trade Mark Directorate,VCUK TWC Facilities Division,16120411,378.72,Not Applicable,
Department for Business Energy and Industrial Strategy,Intellectual Property Office,29/12/2016,Miscellaneous Expenses General,People Places & Services Directorate,VCUK TWC Facilities Division,16120411,475.20,Not Applicable,
Department for Business Energy and Industrial Strategy,Intellectual Property Office,12/12/2016,Miscellaneous Expenses General,People Places & Services Directorate,OH Assist Limited,INV0007132,659.60,Not Applicable,
Department for Business Energy and Industrial Strategy,Intellectual Property Office,16/12/2016,Miscellaneous Expenses General,Innovation Directorate,Menta,6180,720.00,Not Applicable,
Department for Business Energy and Industrial Strategy,Intellectual Property Office,09/12/2016,Miscellaneous Expenses General,People Places & Services Directorate,C2W Support,33646,750.00,Not Applicable,
Department for Business Energy and Industrial Strategy,Intellectual Property Office,16/12/2016,Miscellaneous Expenses General,Projects,Pick Everard,43034,1204.93,Not Applicable,
Department for Business Energy and Industrial Strategy,Intellectual Property Office,13/12/2016,Miscellaneous Expenses General,Innovation Directorate,PROFESSOR STEVE COOK,42683,2000.00,Not Applicable,
Department for Business Energy and Industrial Strategy,Intellectual Property Office,07/12/2016,Miscellaneous Expenses General,Trade Mark Directorate,British Standards Institution,94651178-1000,2157.60,Not Applicable,
Department for Business Energy and Industrial Strategy,Intellectual Property Office,02/12/2016,Miscellaneous Expenses General,People Places & Services Directorate,Capital Law LLP,20036987,2850.00,Not Applicable,
Department for Business Energy and Industrial Strategy,Intellectual Property Office,06/12/2016,Miscellaneous Expenses General,People Places & Services Directorate,Capital Law LLP,20036984,2910.00,Not Applicable,
Department for Business Energy and Industrial Strategy,Intellectual Property Office,23/12/2016,Miscellaneous Expenses General,Trade Mark Directorate,International Trademark Association,235452,8941.08,Not Applicable,
Department for Business Energy and Industrial Strategy,Intellectual Property Office,22/12/2016,Miscellaneous Expenses General,Innovation Directorate,INNGOT LTD,M1612/2,30000.00,Not Applicable,
Department for Business Energy and Industrial Strategy,Intellectual Property Office,01/12/2016,Miscellaneous Expenses General,Innovation Directorate,INNGOT LTD,M1611-4,36000.00,Not Applicable,
Department for Business Energy and Industrial Strategy,Intellectual Property Office,28/12/2016,Office Machinery,People Places & Services Directorate,Xerox (UK) Ltd,1606371428,599.98,Not Applicable,
Department for Business Energy and Industrial Strategy,Intellectual Property Office,28/12/2016,Office Machinery,People Places & Services Directorate,Xerox (UK) Ltd,1606371429,599.98,Not Applicable,
Department for Business Energy and Industrial Strategy,Intellectual Property Office,13/12/2016,Office Machinery,Patent Directorateorate,Xerox (UK) Ltd,1606311621,807.92,Not Applicable,
Department for Business Energy and Industrial Strategy,Intellectual Property Office,28/12/2016,Office Machinery,People Places & Services Directorate,Xerox (UK) Ltd,1606371431,1027.19,Not Applicable,
Department for Business Energy and Industrial Strategy,Intellectual Property Office,28/12/2016,Office Machinery,People Places & Services Directorate,Xerox (UK) Ltd,1606371432,1027.19,Not Applicable,
Department for Business Energy and Industrial Strategy,Intellectual Property Office,29/12/2016,Office Supplies,People Places & Services Directorate,VCUK TWC Facilities Division,16120411,33.60,Not Applicable,
Department for Business Energy and Industrial Strategy,Intellectual Property Office,05/12/2016,Office Supplies,Finance Directorate,Antalis,6379500,624.00,Not Applicable,
Department for Business Energy and Industrial Strategy,Intellectual Property Office,13/12/2016,Office Supplies,Finance Directorate,Antalis,6416332,624.00,Not Applicable,
Department for Business Energy and Industrial Strategy,Intellectual Property Office,13/12/2016,Office Supplies,Patent Directorateorate,AIP Publishing,1180072,935.06,Not Applicable,
Department for Business Energy and Industrial Strategy,Intellectual Property Office,06/12/2016,Office Supplies,Finance Directorate,RR Donnelley,4507020,1581.12,Not Applicable,
Department for Business Energy and Industrial Strategy,Intellectual Property Office,08/12/2016,Office Supplies,Trade Mark Directorate,Thomson Reuters (Professional) Ltd,9000855791,1689.00,Not Applicable,
Department for Business Energy and Industrial Strategy,Intellectual Property Office,06/12/2016,Office Supplies,Finance Directorate,Banner  Business Supplies Ltd,32601399,1783.84,Not Applicable,
Department for Business Energy and Industrial Strategy,Intellectual Property Office,05/12/2016,Office Supplies,Patent Directorateorate,British Library,139779019,2433.52,Not Applicable,
Department for Business Energy and Industrial Strategy,Intellectual Property Office,05/12/2016,Office Supplies,Finance Directorate,Antalis,6401434,2710.92,Not Applicable,
Department for Business Energy and Industrial Strategy,Intellectual Property Office,20/12/2016,Office Supplies,People Places & Services Directorate,HFX Ltd,26189,4552.20,Not Applicable,
Department for Business Energy and Industrial Strategy,Intellectual Property Office,19/12/2016,Pay Costs,Patent Directorateorate,Brook Street (UK) Ltd,30161474,297.70,Not Applicable,
Department for Business Energy and Industrial Strategy,Intellectual Property Office,02/12/2016,Pay Costs,People Places & Services Directorate,Brook Street (UK) Ltd,30138667,319.44,Not Applicable,
Department for Business Energy and Industrial Strategy,Intellectual Property Office,02/12/2016,Pay Costs,Patent Directorateorate,Brook Street (UK) Ltd,30138667,362.06,Not Applicable,
Department for Business Energy and Industrial Strategy,Intellectual Property Office,09/12/2016,Pay Costs,Patent Directorateorate,Brook Street (UK) Ltd,30149605,428.34,Not Applicable,
Department for Business Energy and Industrial Strategy,Intellectual Property Office,02/12/2016,Pay Costs,Patent Directorateorate,Brook Street (UK) Ltd,30138667,435.60,Not Applicable,
Department for Business Energy and Industrial Strategy,Intellectual Property Office,09/12/2016,Pay Costs,Patent Directorateorate,Brook Street (UK) Ltd,30149605,482.76,Not Applicable,
Department for Business Energy and Industrial Strategy,Intellectual Property Office,09/12/2016,Pay Costs,Patent Directorateorate,Brook Street (UK) Ltd,30149605,517.51,Not Applicable,
Department for Business Energy and Industrial Strategy,Intellectual Property Office,19/12/2016,Pay Costs,Patent Directorateorate,Brook Street (UK) Ltd,30161474,521.26,Not Applicable,
Department for Business Energy and Industrial Strategy,Intellectual Property Office,02/12/2016,Pay Costs,Patent Directorateorate,Brook Street (UK) Ltd,30138667,528.30,Not Applicable,
Department for Business Energy and Industrial Strategy,Intellectual Property Office,09/12/2016,Pay Costs,Patent Directorateorate,Brook Street (UK) Ltd,30149605,532.80,Not Applicable,
Department for Business Energy and Industrial Strategy,Intellectual Property Office,02/12/2016,Pay Costs,Patent Directorateorate,Brook Street (UK) Ltd,30138667,537.24,Not Applicable,
Department for Business Energy and Industrial Strategy,Intellectual Property Office,09/12/2016,Pay Costs,People Places & Services Directorate,Brook Street (UK) Ltd,30149605,537.24,Not Applicable,
Department for Business Energy and Industrial Strategy,Intellectual Property Office,09/12/2016,Pay Costs,Patent Directorateorate,Brook Street (UK) Ltd,30149605,537.24,Not Applicable,
Department for Business Energy and Industrial Strategy,Intellectual Property Office,19/12/2016,Pay Costs,People Places & Services Directorate,Brook Street (UK) Ltd,30161474,537.24,Not Applicable,
Department for Business Energy and Industrial Strategy,Intellectual Property Office,19/12/2016,Pay Costs,Patent Directorateorate,Brook Street (UK) Ltd,30161474,537.24,Not Applicable,
Department for Business Energy and Industrial Strategy,Intellectual Property Office,19/12/2016,Pay Costs,Patent Directorateorate,Brook Street (UK) Ltd,30161474,537.24,Not Applicable,
Department for Business Energy and Industrial Strategy,Intellectual Property Office,22/12/2016,Pay Costs,Finance Directorate,Accountancy Recruitment Wales,2376,566.05,Not Applicable,
Department for Business Energy and Industrial Strategy,Intellectual Property Office,09/12/2016,Pay Costs,Patent Directorateorate,Brook Street (UK) Ltd,30149605,600.73,Not Applicable,
Department for Business Energy and Industrial Strategy,Intellectual Property Office,14/12/2016,Pay Costs,Finance Directorate,Accountancy Recruitment Wales,2367,614.02,Not Applicable,
Department for Business Energy and Industrial Strategy,Intellectual Property Office,01/12/2016,Pay Costs,Finance Directorate,Accountancy Recruitment Wales,2349,633.20,Not Applicable,
Department for Business Energy and Industrial Strategy,Intellectual Property Office,02/12/2016,Pay Costs,International Policy Directora,Brook Street (UK) Ltd,30138668,677.88,Not Applicable,
Department for Business Energy and Industrial Strategy,Intellectual Property Office,09/12/2016,Pay Costs,International Policy Directora,Brook Street (UK) Ltd,30149606,677.88,Not Applicable,
Department for Business Energy and Industrial Strategy,Intellectual Property Office,19/12/2016,Pay Costs,International Policy Directora,Brook Street (UK) Ltd,30161475,677.88,Not Applicable,
Department for Business Energy and Industrial Strategy,Intellectual Property Office,09/12/2016,Pay Costs,Patent Directorateorate,Brook Street (UK) Ltd,30149605,779.95,Not Applicable,
Department for Business Energy and Industrial Strategy,Intellectual Property Office,19/12/2016,Pay Costs,Patent Directorateorate,Brook Street (UK) Ltd,30161474,868.62,Not Applicable,
Department for Business Energy and Industrial Strategy,Intellectual Property Office,02/12/2016,Pay Costs,Patent Directorateorate,Brook Street (UK) Ltd,30138667,939.40,Not Applicable,
Department for Business Energy and Industrial Strategy,Intellectual Property Office,02/12/2016,Pay Costs,Patent Directorateorate,Brook Street (UK) Ltd,30138667,994.45,Not Applicable,
Department for Business Energy and Industrial Strategy,Intellectual Property Office,02/12/2016,Pay Costs,Patent Directorateorate,Brook Street (UK) Ltd,30138667,1019.68,Not Applicable,
Department for Business Energy and Industrial Strategy,Intellectual Property Office,09/12/2016,Pay Costs,Patent Directorateorate,Brook Street (UK) Ltd,30149605,1019.68,Not Applicable,
Department for Business Energy and Industrial Strategy,Intellectual Property Office,02/12/2016,Pay Costs,Patent Directorateorate,Brook Street (UK) Ltd,30138667,1077.24,Not Applicable,
Department for Business Energy and Industrial Strategy,Intellectual Property Office,19/12/2016,Pay Costs,Patent Directorateorate,Brook Street (UK) Ltd,30161474,1077.24,Not Applicable,
Department for Business Energy and Industrial Strategy,Intellectual Property Office,09/12/2016,Pay Costs,Patent Directorateorate,Brook Street (UK) Ltd,30149605,1591.84,Not Applicable,
Department for Business Energy and Industrial Strategy,Intellectual Property Office,09/12/2016,Pay Costs,Patent Directorateorate,Brook Street (UK) Ltd,30149605,1677.92,Not Applicable,
Department for Business Energy and Industrial Strategy,Intellectual Property Office,19/12/2016,Pay Costs,Patent Directorateorate,Brook Street (UK) Ltd,30161474,2067.08,Not Applicable,
Department for Business Energy and Industrial Strategy,Intellectual Property Office,09/12/2016,Pay Costs,Patent Directorateorate,Brook Street (UK) Ltd,30149605,2118.52,Not Applicable,
Department for Business Energy and Industrial Strategy,Intellectual Property Office,02/12/2016,Pay Costs,Patent Directorateorate,Brook Street (UK) Ltd,30138667,2166.01,Not Applicable,
Department for Business Energy and Industrial Strategy,Intellectual Property Office,19/12/2016,Pay Costs,Patent Directorateorate,Brook Street (UK) Ltd,30161474,2216.55,Not Applicable,
Department for Business Energy and Industrial Strategy,Intellectual Property Office,02/12/2016,Pay Costs,Patent Directorateorate,Brook Street (UK) Ltd,30138667,2444.98,Not Applicable,
Department for Business Energy and Industrial Strategy,Intellectual Property Office,19/12/2016,Pay Costs,Patent Directorateorate,Brook Street (UK) Ltd,30161474,2534.91,Not Applicable,
Department for Business Energy and Industrial Strategy,Intellectual Property Office,15/12/2016,Postage & Delivery Costs,People Places & Services Directorate,Parcelforce Worldwide,9053502939,621.37,Not Applicable,
Department for Business Energy and Industrial Strategy,Intellectual Property Office,01/12/2016,Postage & Delivery Costs,People Places & Services Directorate,DHL International (UK) Ltd,BRS9955712,975.12,Not Applicable,
Department for Business Energy and Industrial Strategy,Intellectual Property Office,29/12/2016,Postage & Delivery Costs,People Places & Services Directorate,DHL International (UK) Ltd,BRS0037377,1049.00,Not Applicable,
Department for Business Energy and Industrial Strategy,Intellectual Property Office,13/12/2016,Postage & Delivery Costs,People Places & Services Directorate,Royal Mail,9053469250,1468.09,Not Applicable,
Department for Business Energy and Industrial Strategy,Intellectual Property Office,29/12/2016,Postage & Delivery Costs,People Places & Services Directorate,Royal Mail,9053555487,1562.17,Not Applicable,
Department for Business Energy and Industrial Strategy,Intellectual Property Office,14/12/2016,Postage & Delivery Costs,People Places & Services Directorate,Personal expenses,BRS0005397,2148.28,Not Applicable,
Department for Business Energy and Industrial Strategy,Intellectual Property Office,22/12/2016,Postage & Delivery Costs,People Places & Services Directorate,DHL International (UK) Ltd,BRS0021249,2385.11,Not Applicable,
Department for Business Energy and Industrial Strategy,Intellectual Property Office,08/12/2016,Postage & Delivery Costs,People Places & Services Directorate,CitySprint (UK) Ltd,1946090,3099.53,Not Applicable,
Department for Business Energy and Industrial Strategy,Intellectual Property Office,05/12/2016,Postage & Delivery Costs,People Places & Services Directorate,DX Network Services Ltd,81229465,4320.00,Not Applicable,
Department for Business Energy and Industrial Strategy,Intellectual Property Office,12/12/2016,Staff Costs,Trade Mark Directorate,Whitehall & Industry Group,2160691,540.00,Not Applicable,
Department for Business Energy and Industrial Strategy,Intellectual Property Office,21/12/2016,Staff Costs,People Places & Services Directorate,DBL Europe Ltd,110,566.66,Not Applicable,
Department for Business Energy and Industrial Strategy,Intellectual Property Office,20/12/2016,Staff Costs,People Places & Services Directorate,Media Training Ltd,40396,990.00,Not Applicable,
Department for Business Energy and Industrial Strategy,Intellectual Property Office,12/12/2016,Staff Costs,Innovation Directorate,CERTITEC,14935,1018.80,Not Applicable,
Department for Business Energy and Industrial Strategy,Intellectual Property Office,20/12/2016,Staff Costs,People Places & Services Directorate,Media Training Ltd,40396,1055.70,Not Applicable,
Department for Business Energy and Industrial Strategy,Intellectual Property Office,13/12/2016,Staff Costs,People Places & Services Directorate,Evac+Chair International Ltd,INV094390,1176.00,Not Applicable,
Department for Business Energy and Industrial Strategy,Intellectual Property Office,09/12/2016,Staff Costs,People Places & Services Directorate,Involve Me Training and Development Ltd,105,1200.00,Not Applicable,
Department for Business Energy and Industrial Strategy,Intellectual Property Office,20/12/2016,Staff Costs,Copyright & Enforcement Directorate,Clear Coaching & Consulting Ltd,274-2016-17,1210.13,Not Applicable,
Department for Business Energy and Industrial Strategy,Intellectual Property Office,13/12/2016,Staff Costs,People Places & Services Directorate,Acorn Recruitment Ltd,APS02923,1290.00,Not Applicable,
Department for Business Energy and Industrial Strategy,Intellectual Property Office,05/12/2016,Staff Costs,People Places & Services Directorate,Clear Coaching & Consulting Ltd,270-2016-17,1314.00,Not Applicable,
Department for Business Energy and Industrial Strategy,Intellectual Property Office,02/12/2016,Staff Costs,People Places & Services Directorate,Involve Me Training and Development Ltd,103,1368.00,Not Applicable,
Department for Business Energy and Industrial Strategy,Intellectual Property Office,13/12/2016,Staff Costs,Patent Directorateorate,Stratagem Worldwide Limited,SW0298,2179.92,Not Applicable,
Department for Business Energy and Industrial Strategy,Intellectual Property Office,09/12/2016,Staff Costs,People Places & Services Directorate,University of South Wales (Pontypridd),20489,2300.00,Not Applicable,
Department for Business Energy and Industrial Strategy,Intellectual Property Office,12/12/2016,Staff Costs,People Places & Services Directorate,University of South Wales (Pontypridd),20500,2300.00,Not Applicable,
Department for Business Energy and Industrial Strategy,Intellectual Property Office,08/12/2016,Staff Costs,People Places & Services Directorate,University of South Wales (Pontypridd),20502,2300.00,Not Applicable,
Department for Business Energy and Industrial Strategy,Intellectual Property Office,02/12/2016,Staff Costs,People Places & Services Directorate,KPMG LLP (CSL),5501326711,3000.00,Not Applicable,
Department for Business Energy and Industrial Strategy,Intellectual Property Office,02/12/2016,Staff Costs,People Places & Services Directorate,KPMG LLP (CSL),5501326713,3000.00,Not Applicable,
Department for Business Energy and Industrial Strategy,Intellectual Property Office,21/12/2016,Staff Costs,People Places & Services Directorate,TRANSMEDIA.CO.UK,13214,3564.00,Not Applicable,
Department for Business Energy and Industrial Strategy,Intellectual Property Office,20/12/2016,Staff Costs,It Directorateorate,Assist Knowledge Development Ltd,1612177,4236.00,Not Applicable,
Department for Business Energy and Industrial Strategy,Intellectual Property Office,16/12/2016,Staff Costs,People Places & Services Directorate,CERTITEC,14927,4555.20,Not Applicable,
Department for Business Energy and Industrial Strategy,Intellectual Property Office,16/12/2016,Staff Costs,People Places & Services Directorate,Beamans Ltd,T,6432.12,Not Applicable,
Department for Business Energy and Industrial Strategy,Intellectual Property Office,14/12/2016,Staff Costs,It Directorateorate,Responsiv Solutions Limited,RSL0151,35640.00,Not Applicable,
Department for Business Energy and Industrial Strategy,Intellectual Property Office,#REF!,#REF!,#REF!,#REF!,#REF!,#REF!,Not Applicable,
Department for Business Energy and Industrial Strategy,Intellectual Property Office,08/12/2016,Supporting UK Business,International Policy Directora,FOREIGN & COMMONWEALTH OFFICE,1091356,-5712.54,Not Applicable,
Department for Business Energy and Industrial Strategy,Intellectual Property Office,05/12/2016,Supporting UK Business,Innovation Directorate,Red Beetle Films Ltd,59,540.00,Not Applicable,
Department for Business Energy and Industrial Strategy,Intellectual Property Office,08/12/2016,Supporting UK Business,International Policy Directora,FOREIGN & COMMONWEALTH OFFICE,1091668,886.69,Not Applicable,
Department for Business Energy and Industrial Strategy,Intellectual Property Office,02/12/2016,Supporting UK Business,Innovation Directorate,IS Media Ltd (t/a People for Research),6167,1497.60,Not Applicable,
Department for Business Energy and Industrial Strategy,Intellectual Property Office,08/12/2016,Supporting UK Business,Innovation Directorate,Wynne-Jones Laine and James LLP,89860,2520.00,Not Applicable,
Department for Business Energy and Industrial Strategy,Intellectual Property Office,05/12/2016,Supporting UK Business,Innovation Directorate,IP21 LTD,18501,2599.20,Not Applicable,
Department for Business Energy and Industrial Strategy,Intellectual Property Office,21/12/2016,Supporting UK Business,Innovation Directorate,Alistair Hindle Associates,161207,2600.00,Not Applicable,
Department for Business Energy and Industrial Strategy,Intellectual Property Office,05/12/2016,Supporting UK Business,Innovation Directorate,Marks & Clerk LLP,7077316,2600.00,Not Applicable,
Department for Business Energy and Industrial Strategy,Intellectual Property Office,08/12/2016,Supporting UK Business,Innovation Directorate,Marks & Clerk LLP,7077466,2600.00,Not Applicable,
Department for Business Energy and Industrial Strategy,Intellectual Property Office,05/12/2016,Supporting UK Business,Innovation Directorate,LAWRIE INTELLECTUAL PROPERTY,108655,2600.00,Not Applicable,
Department for Business Energy and Industrial Strategy,Intellectual Property Office,08/12/2016,Supporting UK Business,Innovation Directorate,LAWRIE INTELLECTUAL PROPERTY,108770,2600.00,Not Applicable,
Department for Business Energy and Industrial Strategy,Intellectual Property Office,21/12/2016,Supporting UK Business,Innovation Directorate,LAWRIE INTELLECTUAL PROPERTY,108918,2600.00,Not Applicable,
Department for Business Energy and Industrial Strategy,Intellectual Property Office,21/12/2016,Supporting UK Business,Innovation Directorate,CAMERON INTELLECTUAL PROPERTY LTD,2023-16,2600.00,Not Applicable,
Department for Business Energy and Industrial Strategy,Intellectual Property Office,21/12/2016,Supporting UK Business,Innovation Directorate,CAMERON INTELLECTUAL PROPERTY LTD,2091-16,2600.00,Not Applicable,
Department for Business Energy and Industrial Strategy,Intellectual Property Office,09/12/2016,Supporting UK Business,Innovation Directorate,S. William Wallace & Co,0076/16,2600.00,Not Applicable,
Department for Business Energy and Industrial Strategy,Intellectual Property Office,09/12/2016,Supporting UK Business,Innovation Directorate,S. William Wallace & Co,0079/16,2600.00,Not Applicable,
Department for Business Energy and Industrial Strategy,Intellectual Property Office,22/12/2016,Supporting UK Business,Innovation Directorate,Lean IP,INV2081,2600.00,Not Applicable,
Department for Business Energy and Industrial Strategy,Intellectual Property Office,22/12/2016,Supporting UK Business,Innovation Directorate,Lean IP,INV2083,2600.00,Not Applicable,
Department for Business Energy and Industrial Strategy,Intellectual Property Office,09/12/2016,Supporting UK Business,Innovation Directorate,Thorntons,907922,2600.00,Not Applicable,
Department for Business Energy and Industrial Strategy,Intellectual Property Office,09/12/2016,Supporting UK Business,Innovation Directorate,K. W. Peter & Co,101572,2600.00,Not Applicable,
Department for Business Energy and Industrial Strategy,Intellectual Property Office,21/12/2016,Supporting UK Business,Innovation Directorate,HARPER MACLEOD LLP,D874436,2600.00,Not Applicable,
Department for Business Energy and Industrial Strategy,Intellectual Property Office,22/12/2016,Supporting UK Business,Innovation Directorate,MBM Commercial LLP,10/12729,2600.00,Not Applicable,
Department for Business Energy and Industrial Strategy,Intellectual Property Office,05/12/2016,Supporting UK Business,Innovation Directorate,Ashfords LLP,598350,2600.00,Not Applicable,
Department for Business Energy and Industrial Strategy,Intellectual Property Office,09/12/2016,Supporting UK Business,Innovation Directorate,Ouzman IP Limited,213,2600.00,Not Applicable,
Department for Business Energy and Industrial Strategy,Intellectual Property Office,14/12/2016,Supporting UK Business,International Policy Directora,FOREIGN & COMMONWEALTH OFFICE,1091498,3201.19,Not Applicable,
Department for Business Energy and Industrial Strategy,Intellectual Property Office,02/12/2016,Supporting UK Business,Innovation Directorate,Pukka Films Ltd,PF5900,8999.40,Not Applicable,
Department for Business Energy and Industrial Strategy,Intellectual Property Office,21/12/2016,Supporting UK Business,International Policy Directora,FOREIGN & COMMONWEALTH OFFICE,1092321,15509.07,Not Applicable,
Department for Business Energy and Industrial Strategy,Intellectual Property Office,08/12/2016,Supporting UK Business,International Policy Directora,FOREIGN & COMMONWEALTH OFFICE,1091811,23984.29,Not Applicable,
Department for Business Energy and Industrial Strategy,Intellectual Property Office,14/12/2016,Supporting UK Business,International Policy Directora,FOREIGN & COMMONWEALTH OFFICE,1092136,36310.80,Not Applicable,
Department for Business Energy and Industrial Strategy,Intellectual Property Office,02/12/2016,Telecoms,It Directorateorate,ZEN INTERNET LIMITED,21770510,504.94,Not Applicable,
Department for Business Energy and Industrial Strategy,Intellectual Property Office,15/12/2016,Telecoms,It Directorateorate,VIRGIN MEDIA,409092201-09DEC,505.39,Not Applicable,
Department for Business Energy and Industrial Strategy,Intellectual Property Office,20/12/2016,Telecoms,It Directorateorate,Talk Talk Business,16048746,522.88,Not Applicable,
Department for Business Energy and Industrial Strategy,Intellectual Property Office,07/12/2016,Telecoms,It Directorateorate,VIRGIN MEDIA,917218-079,585.73,Not Applicable,
Department for Business Energy and Industrial Strategy,Intellectual Property Office,07/12/2016,Telecoms,It Directorateorate,THREE,AKK43939649,851.40,Not Applicable,
Department for Business Energy and Industrial Strategy,Intellectual Property Office,09/12/2016,Telecoms,It Directorateorate,British  Telecom,GP00002104M0405Y,3056.23,Not Applicable,
Department for Business Energy and Industrial Strategy,Intellectual Property Office,08/12/2016,Telecoms,It Directorateorate,Personal expenses,UK10-122016-2253,3322.08,Not Applicable,
Department for Business Energy and Industrial Strategy,Intellectual Property Office,12/12/2016,Telecoms,It Directorateorate,ZEN INTERNET LIMITED,21824738,5138.89,Not Applicable,
Department for Business Energy and Industrial Strategy,Intellectual Property Office,20/12/2016,Telecoms,It Directorateorate,British  Telecom,VP02239170M18001,8257.16,Not Applicable,
Department for Business Energy and Industrial Strategy,Intellectual Property Office,13/12/2016,Telecoms,It Directorateorate,British  Telecom,26092271Q019,8448.46,Not Applicable,
Department for Business Energy and Industrial Strategy,Intellectual Property Office,13/12/2016,Telecoms,It Directorateorate,British  Telecom,26092379Q020,9029.38,Not Applicable,
Department for Business Energy and Industrial Strategy,Intellectual Property Office,02/12/2016,Travel & Subsistence,International Policy Directora,WIPO,T WALKDEN,-3080.00,Not Applicable,
Department for Business Energy and Industrial Strategy,Intellectual Property Office,12/12/2016,Travel & Subsistence,Patent Directorateorate,Veezu Ltd T/A Dragon Taxis (Newport),1554,7.80,Not Applicable,
Department for Business Energy and Industrial Strategy,Intellectual Property Office,12/12/2016,Travel & Subsistence,It Directorateorate,Veezu Ltd T/A Dragon Taxis (Newport),1554,7.80,Not Applicable,
Department for Business Energy and Industrial Strategy,Intellectual Property Office,12/12/2016,Travel & Subsistence,Copyright & Enforcement Directorate,Veezu Ltd T/A Dragon Taxis (Newport),1554,7.80,Not Applicable,
Department for Business Energy and Industrial Strategy,Intellectual Property Office,12/12/2016,Travel & Subsistence,People Places & Services Directorate,Veezu Ltd T/A Dragon Taxis (Newport),1554,7.80,Not Applicable,
Department for Business Energy and Industrial Strategy,Intellectual Property Office,12/12/2016,Travel & Subsistence,It Directorateorate,Veezu Ltd T/A Dragon Taxis (Newport),1554,7.80,Not Applicable,
Department for Business Energy and Industrial Strategy,Intellectual Property Office,12/12/2016,Travel & Subsistence,Trade Mark Directorate,Veezu Ltd T/A Dragon Taxis (Newport),1554,9.42,Not Applicable,
Department for Business Energy and Industrial Strategy,Intellectual Property Office,12/12/2016,Travel & Subsistence,Innovation Directorate,Veezu Ltd T/A Dragon Taxis (Newport),1554,10.44,Not Applicable,
Department for Business Energy and Industrial Strategy,Intellectual Property Office,12/12/2016,Travel & Subsistence,Innovation Directorate,Veezu Ltd T/A Dragon Taxis (Newport),1554,33.90,Not Applicable,
Department for Business Energy and Industrial Strategy,Intellectual Property Office,12/12/2016,Travel & Subsistence,It Directorateorate,Veezu Ltd T/A Dragon Taxis (Newport),1554,38.88,Not Applicable,
Department for Business Energy and Industrial Strategy,Intellectual Property Office,12/12/2016,Travel & Subsistence,Copyright & Enforcement Directorate,Veezu Ltd T/A Dragon Taxis (Newport),1554,39.00,Not Applicable,
Department for Business Energy and Industrial Strategy,Intellectual Property Office,12/12/2016,Travel & Subsistence,People Places & Services Directorate,Veezu Ltd T/A Dragon Taxis (Newport),1554,40.14,Not Applicable,
Department for Business Energy and Industrial Strategy,Intellectual Property Office,12/12/2016,Travel & Subsistence,Innovation Directorate,Veezu Ltd T/A Dragon Taxis (Newport),1554,40.20,Not Applicable,
Department for Business Energy and Industrial Strategy,Intellectual Property Office,12/12/2016,Travel & Subsistence,Innovation Directorate,Veezu Ltd T/A Dragon Taxis (Newport),1554,57.36,Not Applicable,
Department for Business Energy and Industrial Strategy,Intellectual Property Office,12/12/2016,Travel & Subsistence,Finance Directorate,Veezu Ltd T/A Dragon Taxis (Newport),1554,71.26,Not Applicable,
Department for Business Energy and Industrial Strategy,Intellectual Property Office,12/12/2016,Travel & Subsistence,Innovation Directorate,Veezu Ltd T/A Dragon Taxis (Newport),1554,74.40,Not Applicable,
Department for Business Energy and Industrial Strategy,Intellectual Property Office,12/12/2016,Travel & Subsistence,Trade Mark Directorate,Veezu Ltd T/A Dragon Taxis (Newport),1554,95.92,Not Applicable,
Department for Business Energy and Industrial Strategy,Intellectual Property Office,12/12/2016,Travel & Subsistence,International Policy Directora,Veezu Ltd T/A Dragon Taxis (Newport),1554,98.40,Not Applicable,
Department for Business Energy and Industrial Strategy,Intellectual Property Office,12/12/2016,Travel & Subsistence,Patent Directorateorate,Veezu Ltd T/A Dragon Taxis (Newport),1554,124.50,Not Applicable,
Department for Business Energy and Industrial Strategy,Intellectual Property Office,12/12/2016,Travel & Subsistence,Innovation Directorate,Veezu Ltd T/A Dragon Taxis (Newport),1554,146.50,Not Applicable,
Department for Business Energy and Industrial Strategy,Intellectual Property Office,12/12/2016,Travel & Subsistence,Trade Mark Directorate,Veezu Ltd T/A Dragon Taxis (Newport),1554,173.52,Not Applicable,
Department for Business Energy and Industrial Strategy,Intellectual Property Office,12/12/2016,Travel & Subsistence,Copyright & Enforcement Directorate,Veezu Ltd T/A Dragon Taxis (Newport),1554,253.62,Not Applicable,
Department for Business Energy and Industrial Strategy,Intellectual Property Office,12/12/2016,Travel & Subsistence,Innovation Directorate,Veezu Ltd T/A Dragon Taxis (Newport),1554,419.64,Not Applicable,
Department for Business Energy and Industrial Strategy,Intellectual Property Office,28/12/2016,Travel & Subsistence,Copyright & Enforcement Directorate,Personal expenses,UK000000774,612.36,Not Applicable,
Department for Business Energy and Industrial Strategy,Intellectual Property Office,28/12/2016,Travel & Subsistence,Copyright & Enforcement Directorate,Personal expenses,OS000000193,805.33,Not Applicable,
Department for Business Energy and Industrial Strategy,Intellectual Property Office,13/12/2016,Travel & Subsistence,Innovation Directorate,Personal expenses,UK000000670,835.35,Not Applicable,
Department for Business Energy and Industrial Strategy,Intellectual Property Office,02/12/2016,Travel & Subsistence,Trade Mark Directorate,Personal expenses,OS000000126,952.09,Not Applicable,
Department for Business Energy and Industrial Strategy,Intellectual Property Office,15/12/2016,Travel & Subsistence,International Policy Directora,Personal expenses,OS000000178,969.56,Not Applicable,
Department for Business Energy and Industrial Strategy,Intellectual Property Office,15/12/2016,Travel & Subsistence,Copyright & Enforcement Directorate,Personal expenses,OS000000173,1263.9,Not Applicable,
Department for Business Energy and Industrial Strategy,Intellectual Property Office,08/12/2016,Travel & Subsistence,Finance Directorate,Personal expenses,S0001780718,1390.25,Not Applicable,
Department for Business Energy and Industrial Strategy,Intellectual Property Office,02/12/2016,Travel & Subsistence,Innovation Directorate,Personal expenses,2016022625,2220,Not Applicable,
